[Event "FIDE WYCC Girls U14 2023"]
[Site "Montesilvano"]
[Date "2023.11.22"]
[Round "9.34"]
[White "Viti, Greta"]
[Black "Hong, Jueun"]
[Result "1-0"]
[ECO "B53"]
[WhiteElo "1644"]
[BlackElo "1299"]
[Annotator "NA RC"]
[PlyCount "141"]
[EventDate "2023.11.13"]
[EventType "swiss"]
[EventCountry "ITA"]
[SourceTitle "playchess.com"]
[Source "ChessBase"]
[SourceQuality "1"]
[TimeControl "40/5400+30:1800+30"]

1. e4 {[%emt 0:00:02]} c5 {[%emt 0:00:15]} 2. Nf3 {[%emt 0:00:05]} d6 {[%emt 0:00:06]} 3. d4 {[%emt 0:00:03]} cxd4 {[%emt 0:00:04]} 4. Qxd4 {[%emt 0:00:05]} a6 {[%emt 0:00:16]} 5. h3 {[%emt 0:00:05]} Nc6 {[%emt 0:00:28]} 6. Qe3 {[%emt 0:01:02]} g6 {[%emt 0:00:48]} 7. c4 {[%emt 0:00:26]} Bg7 {[%emt 0:06:31]} 8. Be2 {[%emt 0:02:49]} Nf6 {[%emt 0:00:49]} 9. Nc3 {[%emt 0:00:49]} O-O {[%emt 0:02:44]} 10. O-O {[%emt 0:00:10]} Nd7 {[%emt 0:03:14]} 11. Rb1 {[%emt 0:11:21]} a5 {[%emt 0:04:11]} 12. b3 {[%emt 0:01:23]} Nc5 {[%emt 0:05:10]} 13. Bb2 {[%emt 0:10:58]} a4 {[%emt 0:06:37]} 14. Nd5 {[%emt 0:07:06]} e6 {[%emt 0:16:49]} 15. Bxg7 {[%emt 0:12:24]} Kxg7 {[%emt 0:00:01]} 16. Nf4 {[%emt 0:00:59]} axb3 {[%emt 0:04:35]} 17. axb3 {[%emt 0:01:03]} Ra3 {[%emt 0:01:06]} 18. e5 {[%emt 0:10:57]} Na5 {[%emt 0:10:18]} 19. Nd2 {[%emt 0:06:47]} Qc7 {[%emt 0:05:25]} 20. Qc3 {[%emt 0:08:14]} dxe5 {[%emt 0:06:33]} 21. Qb2 {[%emt 0:06:18]} Naxb3 {[%emt 0:01:59]} 22. Nf3 {[%emt 0:00:17]} Ra7 {[%emt 0:05:31]} 23. Nxe5 {[%emt 0:00:15]} Kg8 {[%emt 0:00:38]} 24. Rbd1 {[%emt 0:06:08]} Na4 {[%emt 0:05:04]} 25. Qxb3 {[%emt 0:00:04]} Qxe5 {[%emt 0:00:07]} 26. Qf3 {[%emt 0:01:30]} Nc3 {[%emt 0:00:45]} 27. Rd2 {[%emt 0:00:05]} Nxe2+ {[%emt 0:01:22]} 28. Rxe2 {[%emt 0:00:06]} Qc5 {[%emt 0:00:22]} 29. Rc1 {[%emt 0:02:55]} Ra3 {[%emt 0:02:40]} 30. Qe4 {[%emt 0:00:40]} b5 {[%emt 0:00:43]} 31. Rec2 {[%emt 0:01:31]} b4 {[%emt 0:01:18]} 32. Nd3 {[%emt 0:01:09]} Qb6 {[%emt 0:00:22]} 33. c5 {[%emt 0:00:11]} Qb5 {[%emt 0:01:10]} 34. Nxb4 {[%emt 0:00:44]} Ra4 {[%emt 0:01:19]} 35. Rc4 {[%emt 0:00:35]} e5 {[%emt 0:01:12]} 36. Nd5 {[%emt 0:02:55]} Qxc5 {[%emt 0:02:18]} 37. Rxc5 {[%emt 0:00:12]} Rxe4 {[%emt 0:00:01]} 38. Rxc8 {[%emt 0:00:10]} Rxc8 {[%emt 0:00:54]} 39. Rxc8+ {[%emt 0:00:15]} Kg7 {[%emt 0:00:01]} 40. Ne3 {[%emt 0:00:00]} f5 {[%emt 0:00:00]} 41. Rc4 {[%emt 0:03:10]} Rxc4 {[%emt 0:01:23]} 42. Nxc4 {[%emt 0:00:04]} Kf6 {[%emt 0:00:55]} 43. Kf1 {[%emt 0:00:13]} e4 {[%emt 0:00:45]} 44. Ke2 {[%emt 0:00:11]} Ke6 {[%emt 0:00:20]} 45. Ke3 {[%emt 0:00:07]} Kd5 {[%emt 0:00:15]} 46. Nd2 {[%emt 0:01:01]} g5 {[%emt 0:00:30]} 47. g3 {[%emt 0:00:54]} Ke5 {[%emt 0:02:09]} 48. Nc4+ {[%emt 0:01:36]} Kd5 {[%emt 0:00:18]} 49. Na3 {[%emt 0:00:51]} Ke5 {[%emt 0:00:11]} 50. Ke2 {[%emt 0:02:47]} f4 {[%emt 0:00:50]} 51. g4 {[%emt 0:00:48]} Kd4 {[%emt 0:01:00]} 52. Nb5+ {[%emt 0:00:12]} Ke5 {[%emt 0:00:17]} 53. Nc7 {[%emt 0:00:16]} Kd6 {[%emt 0:00:46]} 54. Ne8+ {[%emt 0:00:28]} Ke7 {[%emt 0:00:48]} 55. Ng7 {[%emt 0:00:23]} Kf7 {[%emt 0:01:08]} 56. Nh5 {[%emt 0:01:14]} Ke6 {[%emt 0:01:01]} 57. Kd2 {[%emt 0:03:57]} Ke5 {[%emt 0:05:07]} 58. Kc3 {[%emt 0:00:21]} f3 {[%emt 0:06:53]} 59. Kd2 {[%emt 0:02:22]} Ke6 {[%emt 0:00:26]} 60. Ke3 {[%emt 0:00:09]} Ke5 {[%emt 0:00:20]} 61. Ng3 {[%emt 0:00:35]} Kf6 {[%emt 0:00:33]} 62. Kxe4 {[%emt 0:00:20]} Ke6 {[%emt 0:00:16]} 63. Nf5 {[%emt 0:00:11]} Kf6 {[%emt 0:00:34]} 64. Kxf3 {[%emt 0:00:29]} h5 {[%emt 0:00:14]} 65. Ke4 {[%emt 0:00:21]} hxg4 {[%emt 0:00:31]} 66. hxg4 {[%emt 0:00:04]} Kg6 {[%emt 0:00:05]} 67. Ke5 {[%emt 0:00:06]} Kf7 {[%emt 0:00:13]} 68. Nd6+ {[%emt 0:00:20]} Kg6 {[%emt 0:00:07]} 69. Ke6 {[%emt 0:00:04]} Kg7 {[%emt 0:00:15]} 70. Kf5 {[%emt 0:00:05]} Kh6 {[%emt 0:00:06]} 71. Nf7+ {[%emt 0:00:03]} 1-0

[Event "FIDE WYCC Girls U14 2023"]
[Site "Montesilvano"]
[Date "2023.11.22"]
[Round "9.35"]
[White "Kairbekova, Albina"]
[Black "Maklakova, Naomi"]
[Result "0-1"]
[ECO "D02"]
[WhiteElo "1111"]
[BlackElo "1873"]
[Annotator "NA COMBH"]
[PlyCount "110"]
[EventDate "2023.11.13"]
[EventType "swiss"]
[EventCountry "ITA"]
[SourceTitle "playchess.com"]
[Source "ChessBase"]
[SourceQuality "1"]
[TimeControl "40/5400+30:1800+30"]

1. d4 {[%emt 0:00:02]} d5 {[%emt 0:00:16]} 2. Nf3 {[%emt 0:00:16]} Nf6 {[%emt 0:00:09]} 3. b3 {[%emt 0:01:54]} Bf5 {[%emt 0:01:03]} 4. Bb2 {[%emt 0:00:27]} e6 {[%emt 0:00:13]} 5. e3 {[%emt 0:00:48]} Bd6 {[%emt 0:00:19]} 6. Bd3 {[%emt 0:00:34]} Bg6 {[%emt 0:00:16]} 7. O-O {[%emt 0:01:05]} Nbd7 {[%emt 0:01:40]} 8. Ne5 {[%emt 0:02:03]} O-O {[%emt 0:09:05]} 9. Nd2 {[%emt 0:02:12]} c5 {[%emt 0:00:50]} 10. Bxg6 {[%emt 0:00:39]} hxg6 {[%emt 0:00:11]} 11. Nxd7 {[%emt 0:00:17]} Nxd7 {[%emt 0:00:18]} 12. Nf3 {[%emt 0:00:19]} Rc8 {[%emt 0:00:32]} 13. dxc5 {[%emt 0:01:14]} Bxc5 {[%emt 0:02:14]} 14. Rc1 {[%emt 0:00:49]} Nb6 {[%emt 0:02:09]} 15. Qd2 {[%emt 0:01:12]} Qe7 {[%emt 0:01:19]} 16. Ne5 {[%emt 0:01:50]} Rfd8 {[%emt 0:04:21]} 17. Qc3 {[%emt 0:01:14]} d4 {[%emt 0:03:05]} 18. exd4 {[%emt 0:02:06]} Bxd4 {[%emt 0:00:08]} 19. Qxd4 {[%emt 0:12:12]} Rxd4 {[%emt 0:00:09]} 20. Bxd4 {[%emt 0:00:07]} Nd5 {[%emt 0:00:43]} 21. g3 {[%emt 0:04:11]} a6 {[%emt 0:02:32]} 22. Nd3 {[%emt 0:01:05]} Nc3 {[%emt 0:02:03]} 23. Bxc3 {[%emt 0:00:56]} Rxc3 {[%emt 0:00:05]} 24. Rfe1 {[%emt 0:00:26]} Qa3 {[%emt 0:01:27]} 25. Ne5 {[%emt 0:01:44]} Qxa2 {[%emt 0:05:14]} 26. Rcd1 {[%emt 0:00:13]} Qa5 {[%emt 0:05:21]} 27. Nc4 {[%emt 0:00:20]} Qc7 {[%emt 0:00:49]} 28. Re4 {[%emt 0:01:37]} Rxc2 {[%emt 0:01:23]} 29. Ne5 {[%emt 0:01:11]} Rc1 {[%emt 0:00:36]} 30. Rxc1 {[%emt 0:00:35]} Qxc1+ {[%emt 0:00:06]} 31. Kg2 {[%emt 0:00:11]} Qb2 {[%emt 0:01:46]} 32. Re3 {[%emt 0:02:29]} b5 {[%emt 0:00:24]} 33. Nf3 {[%emt 0:00:27]} a5 {[%emt 0:01:59]} 34. Rd3 {[%emt 0:01:11]} Qf6 {[%emt 0:01:54]} 35. h4 {[%emt 0:00:11]} Qe7 {[%emt 0:01:24]} 36. Rc3 {[%emt 0:00:41]} Qd8 {[%emt 0:03:54]} 37. Kh2 {[%emt 0:01:56]} a4 {[%emt 0:00:15]} 38. bxa4 {[%emt 0:00:21]} bxa4 {[%emt 0:00:02]} 39. Rc6 {[%emt 0:00:20]} Qa8 {[%emt 0:00:23]} 40. Nd4 {[%emt 0:00:00]} e5 {[%emt 0:00:00]} 41. Nf5 {[%emt 0:01:02]} gxf5 {[%emt 0:00:29]} 42. Rc1 {[%emt 0:02:03]} a3 {[%emt 0:00:06]} 43. h5 {[%emt 0:00:25]} a2 {[%emt 0:00:05]} 44. Ra1 {[%emt 0:00:03]} Qa3 {[%emt 0:00:07]} 45. h6 {[%emt 0:00:09]} Qb2 {[%emt 0:00:16]} 46. h7+ {[%emt 0:01:09]} Kxh7 {[%emt 0:00:05]} 47. Rxa2 {[%emt 0:00:10]} Qxa2 {[%emt 0:00:05]} 48. Kh3 {[%emt 0:00:13]} Qxf2 {[%emt 0:00:22]} 49. g4 {[%emt 0:00:06]} fxg4+ {[%emt 0:00:15]} 50. Kxg4 {[%emt 0:00:11]} e4 {[%emt 0:00:05]} 51. Kh3 {[%emt 0:00:11]} e3 {[%emt 0:00:04]} 52. Kg4 {[%emt 0:00:07]} e2 {[%emt 0:00:06]} 53. Kh5 {[%emt 0:00:10]} e1=Q {[%emt 0:00:15]} 54. Kg4 {[%emt 0:00:06]} Qeg1+ {[%emt 0:00:09]} 55. Kh3 {[%emt 0:00:12]} Qfh2# {[%emt 0:00:07]} 0-1

[Event "FIDE WYCC Girls U14 2023"]
[Site "Montesilvano"]
[Date "2023.11.23"]
[Round "10.1"]
[White "Nurgaliyeva, Zarina"]
[Black "Jiang, Tianyu"]
[Result "0-1"]
[ECO "B40"]
[WhiteElo "2104"]
[BlackElo "1917"]
[Annotator "NA RC"]
[PlyCount "120"]
[EventDate "2023.11.13"]
[EventType "swiss"]
[EventCountry "ITA"]
[SourceTitle "playchess.com"]
[Source "ChessBase"]
[SourceQuality "1"]
[TimeControl "40/5400+30:1800+30"]

1. e4 {[%emt 0:00:10]} c5 {[%emt 0:00:05]} 2. Nf3 {[%emt 0:00:03]} e6 {[%emt 0:00:06]} 3. g3 {[%emt 0:00:07]} Nc6 {[%emt 0:01:01]} 4. d4 {[%emt 0:00:07]} cxd4 {[%emt 0:01:03]} 5. Nxd4 {[%emt 0:00:07]} Bc5 {[%emt 0:13:11]} 6. Nb3 {[%emt 0:02:13]} Bb6 {[%emt 0:00:16]} 7. Bg2 {[%emt 0:01:47]} Nf6 {[%emt 0:01:36]} 8. O-O {[%emt 0:01:58]} O-O {[%emt 0:00:33]} 9. c4 {[%emt 0:00:50]} d6 {[%emt 0:08:50]} 10. Bf4 {[%emt 0:11:59]} e5 {[%emt 0:04:23]} 11. Bg5 {[%emt 0:04:52]} Be6 {[%emt 0:04:44]} 12. N1d2 {[%emt 0:05:28]} h6 {[%emt 0:02:32]} 13. Bxf6 {[%emt 0:00:53]} Qxf6 {[%emt 0:00:06]} 14. Kh1 {[%emt 0:00:26]} Rac8 {[%emt 0:05:35]} 15. Nc1 {[%emt 0:09:05]} Ba5 {[%emt 0:17:35]} 16. b3 {[%emt 0:01:46]} h5 {[%emt 0:07:49]} 17. Nf3 {[%emt 0:11:47]} Rfd8 {[%emt 0:03:42]} 18. Rb1 {[%emt 0:02:25]} a6 {[%emt 0:01:12]} 19. a4 {[%emt 0:06:53]} g6 {[%emt 0:01:03]} 20. h3 {[%emt 0:04:48]} Qe7 {[%emt 0:05:09]} 21. Qe2 {[%emt 0:02:22]} Rb8 {[%emt 0:04:01]} 22. Nd3 {[%emt 0:11:24]} Bb6 {[%emt 0:04:43]} 23. Qd2 {[%emt 0:01:40]} Kg7 {[%emt 0:05:39]} 24. Ng5 {[%emt 0:02:29]} Bd7 {[%emt 0:01:41]} 25. f4 {[%emt 0:03:21]} f6 {[%emt 0:00:10]} 26. Nf3 {[%emt 0:00:28]} Kh7 {[%emt 0:01:56]} 27. Nh4 {[%emt 0:01:43]} Be8 {[%emt 0:01:32]} 28. b4 {[%emt 0:02:47]} Bf7 {[%emt 0:01:21]} 29. a5 {[%emt 0:01:54]} Bd4 {[%emt 0:00:56]} 30. b5 {[%emt 0:03:48]} Na7 {[%emt 0:00:16]} 31. Nb4 {[%emt 0:03:35]} Bxc4 {[%emt 0:01:31]} 32. Rfc1 {[%emt 0:00:05]} axb5 {[%emt 0:01:02]} 33. Qd1 {[%emt 0:01:36]} Kg7 {[%emt 0:01:08]} 34. f5 {[%emt 0:00:54]} g5 {[%emt 0:00:18]} 35. Ng6 {[%emt 0:00:14]} Qf7 {[%emt 0:00:04]} 36. Qxh5 {[%emt 0:00:24]} Rbc8 {[%emt 0:00:58]} 37. h4 {[%emt 0:01:15]} Be3 {[%emt 0:00:33]} 38. Rd1 {[%emt 0:00:43]} Nc6 {[%emt 0:00:28]} 39. Nc2 {[%emt 0:00:46]} Bc5 {[%emt 0:00:25]} 40. Bh3 {[%emt 0:00:00]} Ne7 {[%emt 0:00:00]} 41. hxg5 {[%emt 0:04:34]} fxg5 {[%emt 0:23:34]} 42. Kg2 {[%emt 0:16:16]} Nxg6 {[%emt 0:01:54]} 43. Qxg5 {[%emt 0:00:37]} Qf6 {[%emt 0:02:30]} 44. Qxf6+ {[%emt 0:05:02]} Kxf6 {[%emt 0:00:03]} 45. fxg6 {[%emt 0:00:05]} Ra8 {[%emt 0:00:19]} 46. Ra1 {[%emt 0:00:49]} Kxg6 {[%emt 0:01:33]} 47. Ne1 {[%emt 0:01:02]} Bd4 {[%emt 0:00:37]} 48. Rab1 {[%emt 0:01:38]} Rxa5 {[%emt 0:00:22]} 49. Bf5+ {[%emt 0:00:10]} Kf6 {[%emt 0:01:09]} 50. Nf3 {[%emt 0:01:01]} Ra2+ {[%emt 0:01:31]} 51. Rd2 {[%emt 0:00:17]} Rda8 {[%emt 0:00:11]} 52. Rxa2 {[%emt 0:00:42]} Rxa2+ 53. Kh3 {[%emt 0:00:06]} Bc5 {[%emt 0:01:18]} 54. g4 {[%emt 0:01:19]} b4 {[%emt 0:00:55]} 55. g5+ {[%emt 0:00:06]} Kg7 {[%emt 0:00:40]} 56. Rh1 {[%emt 0:00:12]} Bg8 {[%emt 0:00:55]} 57. Kg3 {[%emt 0:02:46]} b3 {[%emt 0:00:11]} 58. g6 {[%emt 0:01:11]} b2 {[%emt 0:01:04]} 59. Ng5 {[%emt 0:00:42]} Ra1 {[%emt 0:00:56]} 60. Rh7+ {[%emt 0:00:32]} Bxh7 {[%emt 0:00:27]} 0-1

[Event "FIDE WYCC Girls U14 2023"]
[Site "Montesilvano"]
[Date "2023.11.23"]
[Round "10.2"]
[White "Goriachkina, Oksana"]
[Black "Mou, Iris"]
[Result "0-1"]
[ECO "A46"]
[WhiteElo "1915"]
[BlackElo "2086"]
[Annotator "NA RC"]
[PlyCount "76"]
[EventDate "2023.11.13"]
[EventType "swiss"]
[EventCountry "ITA"]
[SourceTitle "playchess.com"]
[Source "ChessBase"]
[SourceQuality "1"]
[TimeControl "40/5400+30:1800+30"]

1. d4 {[%emt 0:00:02]} Nf6 2. Nf3 {[%emt 0:00:15]} e6 {[%emt 0:04:44]} 3. g3 {[%emt 0:01:30]} d5 {[%emt 0:01:59]} 4. Bg2 {[%emt 0:00:49]} b5 {[%emt 0:00:37]} 5. a4 {[%emt 0:02:02]} b4 {[%emt 0:01:04]} 6. c4 {[%emt 0:06:22]} bxc3 {[%emt 0:00:40]} 7. bxc3 {[%emt 0:01:09]} Nbd7 {[%emt 0:08:26]} 8. c4 {[%emt 0:01:59]} c6 {[%emt 0:06:19]} 9. O-O {[%emt 0:01:55]} Ba6 {[%emt 0:03:24]} 10. Nbd2 {[%emt 0:14:35]} Rb8 {[%emt 0:06:26]} 11. Qc2 {[%emt 0:04:38]} Bb4 {[%emt 0:05:05]} 12. Ba3 {[%emt 0:08:50]} Bxa3 {[%emt 0:07:22]} 13. Rxa3 {[%emt 0:00:06]} O-O {[%emt 0:00:24]} 14. Qc3 {[%emt 0:09:04]} Qe7 {[%emt 0:02:52]} 15. Rc1 {[%emt 0:08:44]} Rfc8 {[%emt 0:06:48]} 16. Raa1 {[%emt 0:03:57]} c5 {[%emt 0:08:07]} 17. e3 {[%emt 0:07:47]} cxd4 {[%emt 0:10:12]} 18. Qxd4 {[%emt 0:00:05]} e5 {[%emt 0:01:27]} 19. Qh4 {[%emt 0:03:27]} Rb4 {[%emt 0:02:05]} 20. Bh3 {[%emt 0:04:26]} dxc4 {[%emt 0:02:33]} 21. Rc3 {[%emt 0:05:38]} Bb7 {[%emt 0:03:33]} 22. Ng5 {[%emt 0:07:47]} h6 {[%emt 0:03:45]} 23. Nge4 {[%emt 0:00:03]} g5 {[%emt 0:03:52]} 24. Nxf6+ {[%emt 0:00:11]} Qxf6 {[%emt 0:00:22]} 25. Qg4 {[%emt 0:01:07]} Nb6 {[%emt 0:01:39]} 26. Rac1 {[%emt 0:06:05]} Rxa4 {[%emt 0:03:08]} 27. Ne4 {[%emt 0:00:45]} Qg6 {[%emt 0:00:22]} 28. Nd2 {[%emt 0:00:28]} Rd8 {[%emt 0:01:00]} 29. Nxc4 {[%emt 0:00:37]} Bc8 {[%emt 0:01:05]} 30. Qf3 {[%emt 0:00:35]} Rxc4 {[%emt 0:01:15]} 31. Rxc4 {[%emt 0:00:24]} Nxc4 {[%emt 0:00:10]} 32. Bg2 {[%emt 0:00:35]} Be6 {[%emt 0:01:28]} 33. Qc6 {[%emt 0:00:29]} Rc8 {[%emt 0:00:38]} 34. Qb7 {[%emt 0:00:18]} Nd6 {[%emt 0:00:28]} 35. Rxc8+ {[%emt 0:00:31]} Bxc8 {[%emt 0:00:13]} 36. Qb8 {[%emt 0:00:42]} a5 {[%emt 0:00:35]} 37. Bc6 {[%emt 0:00:25]} Qe6 {[%emt 0:00:41]} 38. Qc7 {[%emt 0:00:29]} Ne8 {[%emt 0:01:46]} 0-1

[Event "FIDE WYCC Girls U14 2023"]
[Site "Montesilvano"]
[Date "2023.11.23"]
[Round "10.3"]
[White "Huseynova, Lala"]
[Black "Piddubna, Bozhena"]
[Result "0-1"]
[ECO "C92"]
[WhiteElo "1867"]
[BlackElo "2081"]
[Annotator "NA RC"]
[PlyCount "82"]
[EventDate "2023.11.13"]
[EventType "swiss"]
[EventCountry "ITA"]
[SourceTitle "playchess.com"]
[Source "ChessBase"]
[SourceQuality "1"]
[TimeControl "40/5400+30:1800+30"]

1. e4 {[%emt 0:03:07]} e5 {[%emt 0:01:45]} 2. Nf3 {[%emt 0:00:51]} Nc6 {[%emt 0:00:09]} 3. Bb5 {[%emt 0:00:10]} a6 {[%emt 0:00:12]} 4. Ba4 {[%emt 0:00:03]} Nf6 {[%emt 0:00:18]} 5. O-O {[%emt 0:00:48]} Be7 {[%emt 0:00:16]} 6. Re1 {[%emt 0:00:15]} b5 {[%emt 0:00:09]} 7. Bb3 {[%emt 0:00:03]} d6 {[%emt 0:00:15]} 8. c3 {[%emt 0:00:23]} O-O {[%emt 0:00:26]} 9. h3 {[%emt 0:00:17]} a5 {[%emt 0:05:21]} 10. d4 {[%emt 0:07:27]} Bd7 {[%emt 0:00:47]} 11. Nbd2 {[%emt 0:03:38]} a4 {[%emt 0:01:28]} 12. Bc2 {[%emt 0:00:56]} Re8 {[%emt 0:00:11]} 13. Nf1 {[%emt 0:05:55]} h6 {[%emt 0:00:38]} 14. Ne3 {[%emt 0:05:43]} Bf8 {[%emt 0:02:06]} 15. Nd5 {[%emt 0:02:58]} exd4 {[%emt 0:04:02]} 16. Nxf6+ {[%emt 0:03:32]} Qxf6 {[%emt 0:00:37]} 17. cxd4 {[%emt 0:01:45]} Nb4 {[%emt 0:15:01]} 18. Bb1 {[%emt 0:04:41]} g6 {[%emt 0:06:18]} 19. a3 {[%emt 0:13:11]} Nc6 {[%emt 0:07:44]} 20. Be3 {[%emt 0:09:35]} Bg7 {[%emt 0:04:35]} 21. Qc1 {[%emt 0:09:58]} Rac8 {[%emt 0:18:58]} 22. Qc3 {[%emt 0:08:37]} Nb8 {[%emt 0:05:53]} 23. e5 {[%emt 0:10:03]} dxe5 {[%emt 0:02:33]} 24. Nxe5 {[%emt 0:01:16]} c5 {[%emt 0:02:24]} 25. Qd2 {[%emt 0:01:10]} cxd4 {[%emt 0:03:41]} 26. Bxd4 {[%emt 0:00:10]} Qd6 {[%emt 0:00:21]} 27. Qf4 {[%emt 0:03:39]} Re7 {[%emt 0:00:44]} 28. Bc3 {[%emt 0:00:59]} Rxc3 {[%emt 0:01:39]} 29. bxc3 {[%emt 0:00:03]} Bxe5 {[%emt 0:00:32]} 30. Qc1 {[%emt 0:00:18]} Na6 {[%emt 0:05:47]} 31. Ba2 {[%emt 0:00:36]} Nc5 {[%emt 0:03:01]} 32. Qxh6 {[%emt 0:00:41]} Nb3 {[%emt 0:02:06]} 33. Rad1 {[%emt 0:00:31]} Qf6 {[%emt 0:03:43]} 34. g3 {[%emt 0:01:54]} Qf3 {[%emt 0:01:44]} 35. Bb1 {[%emt 0:00:30]} Bxg3 {[%emt 0:01:10]} 36. Rf1 {[%emt 0:02:01]} Bxf2+ {[%emt 0:00:51]} 37. Rxf2 {[%emt 0:00:03]} Qxd1+ {[%emt 0:00:04]} 38. Rf1 {[%emt 0:00:02]} Re1 {[%emt 0:00:19]} 39. Bd3 {[%emt 0:00:12]} Rxf1+ {[%emt 0:00:12]} 40. Bxf1 {[%emt 0:00:00]} Nd2 {[%emt 0:00:00]} 41. Qf4 {[%emt 0:00:11]} Qxf1+ {[%emt 0:00:29]} 0-1

[Event "FIDE WYCC Girls U14 2023"]
[Site "Montesilvano"]
[Date "2023.11.23"]
[Round "10.4"]
[White "Mgeladze, Kesaria"]
[Black "Ciarletta, Iris"]
[Result "1-0"]
[ECO "B90"]
[WhiteElo "2065"]
[BlackElo "1882"]
[Annotator "NA RC"]
[PlyCount "55"]
[EventDate "2023.11.13"]
[EventType "swiss"]
[EventCountry "ITA"]
[SourceTitle "playchess.com"]
[Source "ChessBase"]
[SourceQuality "1"]
[TimeControl "40/5400+30:1800+30"]

1. e4 {[%emt 0:00:24]} c5 {[%emt 0:01:12]} 2. Nf3 {[%emt 0:00:06]} d6 {[%emt 0:01:00]} 3. d4 {[%emt 0:00:08]} cxd4 {[%emt 0:00:24]} 4. Nxd4 {[%emt 0:00:02]} Nf6 {[%emt 0:00:46]} 5. Nc3 {[%emt 0:00:05]} a6 {[%emt 0:00:56]} 6. f3 {[%emt 0:01:51]} e5 {[%emt 0:03:43]} 7. Nb3 {[%emt 0:00:18]} Be6 {[%emt 0:02:06]} 8. Be3 {[%emt 0:00:40]} Nbd7 {[%emt 0:01:21]} 9. g4 {[%emt 0:01:37]} h6 {[%emt 0:01:15]} 10. Qd2 {[%emt 0:09:08]} Be7 {[%emt 0:05:42]} 11. O-O-O {[%emt 0:04:36]} b5 {[%emt 0:05:29]} 12. h4 {[%emt 0:09:31]} Nb6 {[%emt 0:08:50]} 13. Qf2 {[%emt 0:19:22]} Nfd7 {[%emt 0:03:45]} 14. Kb1 {[%emt 0:06:28]} Rc8 {[%emt 0:04:29]} 15. Nd5 {[%emt 0:02:50]} Bxd5 {[%emt 0:05:13]} 16. exd5 {[%emt 0:00:40]} Nc4 {[%emt 0:02:04]} 17. Bc1 {[%emt 0:01:38]} Qc7 {[%emt 0:04:24]} 18. Bd3 {[%emt 0:02:26]} Ndb6 {[%emt 0:04:20]} 19. Bf5 {[%emt 0:04:18]} Rb8 {[%emt 0:02:04]} 20. f4 {[%emt 0:02:47]} O-O {[%emt 0:03:56]} 21. g5 {[%emt 0:02:18]} h5 {[%emt 0:00:40]} 22. g6 {[%emt 0:02:07]} fxg6 {[%emt 0:02:39]} 23. Bxg6 {[%emt 0:00:19]} Na4 {[%emt 0:02:42]} 24. Qf3 {[%emt 0:02:24]} Bf6 {[%emt 0:05:49]} 25. Qxh5 {[%emt 0:01:10]} Rfc8 {[%emt 0:02:02]} 26. fxe5 {[%emt 0:01:10]} dxe5 {[%emt 0:01:09]} 27. Rhf1 {[%emt 0:01:47]} e4 {[%emt 0:08:23]} 28. Qh7+ {[%emt 0:00:27]} 1-0

[Event "FIDE WYCC Girls U14 2023"]
[Site "Montesilvano"]
[Date "2023.11.23"]
[Round "10.5"]
[White "Lyutsinger, Iren"]
[Black "Tsetskhladze, Mariam"]
[Result "1-0"]
[ECO "B31"]
[WhiteElo "2020"]
[BlackElo "1911"]
[Annotator "NA RC"]
[PlyCount "101"]
[EventDate "2023.11.13"]
[EventType "swiss"]
[EventCountry "ITA"]
[SourceTitle "playchess.com"]
[Source "ChessBase"]
[SourceQuality "1"]
[TimeControl "40/5400+30:1800+30"]

1. e4 {[%emt 0:00:01]} c5 {[%emt 0:01:05]} 2. Nf3 {[%emt 0:00:02]} Nc6 {[%emt 0:00:06]} 3. Bb5 {[%emt 0:00:02]} g6 {[%emt 0:01:46]} 4. Bxc6 {[%emt 0:00:09]} dxc6 {[%emt 0:00:43]} 5. d3 {[%emt 0:00:14]} Bg7 {[%emt 0:00:07]} 6. O-O {[%emt 0:00:08]} e5 {[%emt 0:00:16]} 7. h3 {[%emt 0:02:39]} Qe7 {[%emt 0:01:23]} 8. a3 {[%emt 0:01:02]} Nf6 {[%emt 0:03:18]} 9. b4 {[%emt 0:00:06]} O-O {[%emt 0:10:35]} 10. Nbd2 {[%emt 0:05:36]} Rd8 {[%emt 0:06:49]} 11. Qe2 {[%emt 0:01:45]} Be6 {[%emt 0:10:13]} 12. Ng5 {[%emt 0:12:12]} Bd7 {[%emt 0:09:01]} 13. Nc4 {[%emt 0:13:19]} Nh5 {[%emt 0:04:07]} 14. Rb1 {[%emt 0:05:10]} cxb4 {[%emt 0:03:02]} 15. axb4 {[%emt 0:02:26]} b6 {[%emt 0:03:55]} 16. Be3 {[%emt 0:04:39]} Nf4 {[%emt 0:06:35]} 17. Bxf4 {[%emt 0:00:23]} exf4 {[%emt 0:00:09]} 18. Nf3 {[%emt 0:00:20]} Be6 {[%emt 0:07:30]} 19. Nfd2 {[%emt 0:05:44]} Qc7 {[%emt 0:04:11]} 20. Nb3 {[%emt 0:06:56]} Re8 {[%emt 0:01:53]} 21. Qf3 {[%emt 0:03:49]} Rad8 {[%emt 0:00:19]} 22. Rfd1 {[%emt 0:02:11]} Bc3 {[%emt 0:05:27]} 23. d4 {[%emt 0:09:11]} Bxd4 {[%emt 0:02:22]} 24. Nxd4 {[%emt 0:05:39]} Bxc4 {[%emt 0:00:23]} 25. c3 {[%emt 0:02:24]} Rd7 {[%emt 0:02:37]} 26. Nc2 {[%emt 0:01:36]} Rde7 {[%emt 0:06:29]} 27. Rd4 {[%emt 0:03:00]} Be6 {[%emt 0:00:25]} 28. Rd2 {[%emt 0:04:36]} Bc8 {[%emt 0:01:34]} 29. Re1 {[%emt 0:03:24]} c5 {[%emt 0:01:28]} 30. bxc5 {[%emt 0:01:42]} Qxc5 {[%emt 0:00:52]} 31. Qxf4 {[%emt 0:00:51]} Qxc3 {[%emt 0:00:42]} 32. Nd4 {[%emt 0:01:36]} a6 {[%emt 0:02:47]} 33. e5 {[%emt 0:00:58]} b5 {[%emt 0:02:16]} 34. h4 {[%emt 0:00:34]} h5 {[%emt 0:01:51]} 35. Nf3 {[%emt 0:00:50]} Qc7 {[%emt 0:01:07]} 36. Qh6 {[%emt 0:00:31]} f6 {[%emt 0:00:32]} 37. Qxg6+ {[%emt 0:00:07]} Kf8 {[%emt 0:00:25]} 38. Qxf6+ {[%emt 0:00:25]} Kg8 {[%emt 0:00:36]} 39. Qg6+ {[%emt 0:00:14]} Kf8 {[%emt 0:00:25]} 40. Rd4 {[%emt 0:00:00]} Rf7 {[%emt 0:00:00]} 41. Ng5 {[%emt 0:02:47]} Bf5 {[%emt 0:05:43]} 42. Qxf7+ {[%emt 0:03:24]} Qxf7 {[%emt 0:00:14]} 43. Nxf7 {[%emt 0:00:01]} Kxf7 {[%emt 0:00:10]} 44. Rd6 {[%emt 0:00:12]} Re6 {[%emt 0:04:04]} 45. Rxe6 {[%emt 0:00:21]} Bxe6 {[%emt 0:02:32]} 46. Ra1 {[%emt 0:00:50]} Bc8 {[%emt 0:01:00]} 47. Rc1 {[%emt 0:00:45]} Bd7 {[%emt 0:02:31]} 48. Rc7 {[%emt 0:00:44]} Ke8 {[%emt 0:01:26]} 49. Ra7 {[%emt 0:00:30]} Bc8 {[%emt 0:02:55]} 50. Ra8 {[%emt 0:00:03]} Kd7 {[%emt 0:00:14]} 51. e6+ {[%emt 0:00:08]} 1-0